[Event "Titled Tuesday Blitz June 20 Early 2023"]
[White "Titichoca Daza, Daniel"]
[Black "Vaibhav Jayant Raut"]
[WhiteFideId "3309550"]
[BlackFideId "5089034"]
[WhiteElo "2101"]
[BlackElo "2156"]
[Result "0-1"]
[Round "4"]
[TimeControl "180+2"]
[Date "2023.06.20"]
[WhiteClock "0:00:00"]
[BlackClock "0:00:06"]
[Board "89"]

1. Nf3 {[%clk 0:03:00]}  Nf6 {[%clk 0:02:59]} 2. b3 {[%clk 0:02:59]}  g6 {[%clk 0:02:58]} 3. Bb2 {[%clk 0:03:00]}  Bg7 {[%clk 0:02:59]} 4. g3 {[%clk 0:03:01]}  O-O {[%clk 0:02:59]} 5. Bg2 {[%clk 0:03:01]}  c5 {[%clk 0:02:56]} 6. O-O {[%clk 0:03:01]}  Nc6 {[%clk 0:02:56]} 7. c4 {[%clk 0:03:02]}  a6 {[%clk 0:02:43]} 8. d4 {[%clk 0:03:02]}  cxd4 {[%clk 0:02:32]} 9. Nxd4 {[%clk 0:02:43]}  d5 {[%clk 0:02:28]} 10. Nxc6 {[%clk 0:02:41]}  bxc6 {[%clk 0:02:27]} 11. Nd2 {[%clk 0:02:39]}  a5 {[%clk 0:02:18]} 12. a3 {[%clk 0:02:32]}  Bg4 {[%clk 0:02:15]} 13. Re1 {[%clk 0:02:31]}  Qb6 {[%clk 0:02:11]} 14. Qc2 {[%clk 0:02:22]}  Bf5 {[%clk 0:02:05]} 15. e4 {[%clk 0:02:17]}  dxe4 {[%clk 0:02:00]} 16. Nxe4 {[%clk 0:02:16]}  Rab8 {[%clk 0:01:58]} 17. Bxf6 {[%clk 0:01:48]}  exf6 {[%clk 0:01:54]} 18. Rab1 {[%clk 0:01:48]}  Rfe8 {[%clk 0:01:50]} 19. h3 {[%clk 0:01:44]}  h5 {[%clk 0:01:48]} 20. Re3 {[%clk 0:01:38]}  c5 {[%clk 0:01:41]} 21. Rbe1 {[%clk 0:01:36]}  Re5 {[%clk 0:01:35]} 22. Qc3 {[%clk 0:01:09]}  Bxe4 {[%clk 0:01:17]} 23. Bxe4 {[%clk 0:01:06]}  f5 {[%clk 0:01:04]} 24. Bg2 {[%clk 0:00:54]}  Rxe3 {[%clk 0:01:02]} 25. Qxe3 {[%clk 0:00:54]}  Bd4 {[%clk 0:01:03]} 26. Qg5 {[%clk 0:00:38]}  Qxb3 {[%clk 0:00:57]} 27. Bd5 {[%clk 0:00:39]}  Kg7 {[%clk 0:00:49]} 28. Bxf7 {[%clk 0:00:10]}  Kxf7 {[%clk 0:00:44]} 29. Re7+ {[%clk 0:00:05]}  Kf8 {[%clk 0:00:43]} 30. Rd7 {[%clk 0:00:03]}  Bxf2+ {[%clk 0:00:30]} 31. Kg2 {[%clk 0:00:02]}  Qxg3+ {[%clk 0:00:29]} 32. Qxg3 {[%clk 0:00:02]}  Bxg3 {[%clk 0:00:29]} 33. Kxg3 {[%clk 0:00:03]}  g5 {[%clk 0:00:30]} 34. Rd5 {[%clk 0:00:02]}  Rb3+ {[%clk 0:00:29]} 35. Kg2 {[%clk 0:00:03]}  Kg7 {[%clk 0:00:13]} 36. Rxf5 {[%clk 0:00:02]}  Kg6 {[%clk 0:00:13]} 37. Rxc5 {[%clk 0:00:03]}  Rxa3 {[%clk 0:00:14]} 38. Kf2 {[%clk 0:00:02]}  a4 {[%clk 0:00:13]} 39. Rc6+ {[%clk 0:00:02]}  Kf5 {[%clk 0:00:13]} 40. Kg2 {[%clk 0:00:03]}  Ra2+ {[%clk 0:00:12]} 41. Kf3 {[%clk 0:00:01]}  Ra3+ {[%clk 0:00:11]} 42. Kg2 {[%clk 0:00:01]}  Rc3 {[%clk 0:00:11]} 43. c5 {[%clk 0:00:01]}  a3 {[%clk 0:00:12]} 44. Ra6 {[%clk 0:00:02]}  Rc2+ {[%clk 0:00:07]} 45. Kf3 {[%clk 0:00:02]}  Rc3+ {[%clk 0:00:07]} 46. Kg2 {[%clk 0:00:02]}  Ke5 {[%clk 0:00:07]} 47. c6 {[%clk 0:00:02]}  Kd6 {[%clk 0:00:07]} 48. Kh2 {[%clk 0:00:01]}  Kc7 {[%clk 0:00:05]} 49. Kg2 {[%clk 0:00:01]}  Rc2+ {[%clk 0:00:05]} 50. Kg3 {[%clk 0:00:01]}  a2 {[%clk 0:00:05]} 51. h4 {[%clk 0:00:01]}  Rc3+ {[%clk 0:00:05]} 52. Kg2 {[%clk 0:00:00]}  g4 {[%clk 0:00:06]} 0-1


[Site "https://www.chess.com"]

[Event "Titled Tuesday Blitz June 20 Early 2023"]
[White "Munkhgal, Gombosuren"]
[Black "Sai Han Thiha"]
[WhiteFideId "4901266"]
[BlackFideId "13012290"]
[WhiteElo "2528"]
[BlackElo "1953"]
[Result "1-0"]
[Round "4"]
[TimeControl "180+2"]
[Date "2023.06.20"]
[WhiteClock "0:02:00"]
[BlackClock "0:00:01"]
[Board "90"]

1. d4 {[%clk 0:03:00]}  Nf6 {[%clk 0:03:00]} 2. Bf4 {[%clk 0:03:01]}  e6 {[%clk 0:02:53]} 3. e3 {[%clk 0:03:01]}  c5 {[%clk 0:02:50]} 4. Nd2 {[%clk 0:03:01]}  cxd4 {[%clk 0:02:43]} 5. exd4 {[%clk 0:03:01]}  b6 {[%clk 0:02:44]} 6. Qf3 {[%clk 0:03:00]}  Nc6 {[%clk 0:02:44]} 7. c3 {[%clk 0:02:59]}  Bb7 {[%clk 0:02:43]} 8. Qd1 {[%clk 0:02:41]}  d6 {[%clk 0:02:22]} 9. Ngf3 {[%clk 0:02:41]}  Be7 {[%clk 0:02:23]} 10. Bg3 {[%clk 0:02:41]}  O-O {[%clk 0:02:18]} 11. Bd3 {[%clk 0:02:41]}  Qc8 {[%clk 0:02:13]} 12. Qe2 {[%clk 0:02:40]}  a5 {[%clk 0:02:11]} 13. Ne4 {[%clk 0:02:40]}  Nxe4 {[%clk 0:01:59]} 14. Qxe4 {[%clk 0:02:40]}  g6 {[%clk 0:01:56]} 15. Qe2 {[%clk 0:02:36]}  Ba6 {[%clk 0:01:51]} 16. h4 {[%clk 0:02:36]}  Bxd3 {[%clk 0:01:12]} 17. Qxd3 {[%clk 0:02:37]}  e5 {[%clk 0:00:59]} 18. d5 {[%clk 0:02:35]}  Nd8 {[%clk 0:00:52]} 19. h5 {[%clk 0:02:36]}  Qf5 {[%clk 0:00:25]} 20. Qd2 {[%clk 0:02:34]}  g5 {[%clk 0:00:23]} 21. h6 {[%clk 0:02:34]}  Qg6 {[%clk 0:00:20]} 22. O-O-O {[%clk 0:02:30]}  f5 {[%clk 0:00:19]} 23. Bxe5 {[%clk 0:02:30]}  dxe5 {[%clk 0:00:19]} 24. Nxe5 {[%clk 0:02:31]}  Qd6 {[%clk 0:00:16]} 25. Rde1 {[%clk 0:02:29]}  Bf6 {[%clk 0:00:16]} 26. Nc4 {[%clk 0:02:28]}  Qc5 {[%clk 0:00:16]} 27. Ne5 {[%clk 0:02:20]}  Ra7 {[%clk 0:00:13]} 28. f4 {[%clk 0:02:18]}  g4 {[%clk 0:00:09]} 29. Qd3 {[%clk 0:02:12]}  Qc8 {[%clk 0:00:10]} 30. d6 {[%clk 0:02:11]}  Nc6 {[%clk 0:00:06]} 31. Qd5+ {[%clk 0:02:11]}  Kh8 {[%clk 0:00:05]} 32. Nxc6 {[%clk 0:02:11]}  Rd7 {[%clk 0:00:02]} 33. Ne5 {[%clk 0:02:05]}  Ra7 {[%clk 0:00:03]} 34. d7 {[%clk 0:02:05]}  Qc7 {[%clk 0:00:03]} 35. Nf7+ {[%clk 0:02:03]}  Rxf7 {[%clk 0:00:01]} 36. Re8+ {[%clk 0:02:00]} 1-0


[Site "https://www.chess.com"]

[Event "Titled Tuesday Blitz June 20 Early 2023"]
[White "Sadykov, Ramil"]
[Black "Herzog2012"]
[WhiteFideId "24113590"]
[WhiteElo "2245"]
[BlackElo "2423"]
[Result "0-1"]
[Round "4"]
[TimeControl "180+2"]
[Date "2023.06.20"]
[WhiteClock "0:00:00"]
[BlackClock "0:00:08"]
[Board "92"]

1. Nf3 {[%clk 0:03:00]}  Nf6 {[%clk 0:02:59]} 2. g3 {[%clk 0:03:00]}  b5 {[%clk 0:02:59]} 3. Bg2 {[%clk 0:02:56]}  Bb7 {[%clk 0:02:58]} 4. O-O {[%clk 0:02:55]}  e6 {[%clk 0:02:49]} 5. d3 {[%clk 0:02:55]}  c5 {[%clk 0:02:47]} 6. e4 {[%clk 0:02:54]}  d6 {[%clk 0:02:47]} 7. Re1 {[%clk 0:02:44]}  Be7 {[%clk 0:02:42]} 8. a4 {[%clk 0:02:43]}  a6 {[%clk 0:02:41]} 9. e5 {[%clk 0:02:22]}  dxe5 {[%clk 0:02:36]} 10. Nxe5 {[%clk 0:02:23]}  Bxg2 {[%clk 0:02:22]} 11. Kxg2 {[%clk 0:02:24]}  b4 {[%clk 0:02:08]} 12. Qf3 {[%clk 0:02:23]}  Qd5 {[%clk 0:02:07]} 13. Nd2 {[%clk 0:02:16]}  Nbd7 {[%clk 0:02:00]} 14. Nxd7 {[%clk 0:02:07]}  Qxf3+ {[%clk 0:01:53]} 15. Kxf3 {[%clk 0:02:04]}  Kxd7 {[%clk 0:01:52]} 16. Nc4 {[%clk 0:01:59]}  Rab8 {[%clk 0:01:34]} 17. Bf4 {[%clk 0:01:57]}  Rb7 {[%clk 0:01:34]} 18. Be5 {[%clk 0:01:54]}  Rg8 {[%clk 0:01:25]} 19. g4 {[%clk 0:01:28]}  Nd5 {[%clk 0:01:22]} 20. Rad1 {[%clk 0:01:27]}  f6 {[%clk 0:01:10]} 21. Bg3 {[%clk 0:01:27]}  e5 {[%clk 0:01:07]} 22. h4 {[%clk 0:01:26]}  Nb6 {[%clk 0:00:57]} 23. Na5 {[%clk 0:01:14]}  Rc7 {[%clk 0:00:52]} 24. b3 {[%clk 0:01:13]}  Nd5 {[%clk 0:00:45]} 25. h5 {[%clk 0:01:10]}  Nc3 {[%clk 0:00:42]} 26. Rd2 {[%clk 0:01:10]}  h6 {[%clk 0:00:12]} 27. Nc4 {[%clk 0:01:05]}  Bd6 {[%clk 0:00:11]} 28. d4 {[%clk 0:00:56]}  cxd4 {[%clk 0:00:09]} 29. Nxd6 {[%clk 0:00:53]}  Kxd6 {[%clk 0:00:10]} 30. Rxd4+ {[%clk 0:00:53]}  Kc5 {[%clk 0:00:05]} 31. Rc4+ {[%clk 0:00:51]}  Kd6 {[%clk 0:00:06]} 32. Rxb4 {[%clk 0:00:47]}  Nd5 {[%clk 0:00:06]} 33. Rd1 {[%clk 0:00:43]}  Ke6 {[%clk 0:00:05]} 34. Rc4 {[%clk 0:00:38]}  Rxc4 {[%clk 0:00:05]} 35. bxc4 {[%clk 0:00:39]}  Nb6 {[%clk 0:00:05]} 36. c5 {[%clk 0:00:40]}  Nxa4 {[%clk 0:00:06]} 37. Rd6+ {[%clk 0:00:40]}  Ke7 {[%clk 0:00:05]} 38. Rc6 {[%clk 0:00:26]}  Rd8 {[%clk 0:00:03]} 39. Ke4 {[%clk 0:00:22]}  Kd7 {[%clk 0:00:03]} 40. Rd6+ {[%clk 0:00:19]}  Kc7 {[%clk 0:00:03]} 41. Kd5 {[%clk 0:00:16]}  Rxd6+ {[%clk 0:00:02]} 42. cxd6+ {[%clk 0:00:16]}  Kd7 {[%clk 0:00:03]} 43. f4 {[%clk 0:00:14]}  Nb6+ {[%clk 0:00:03]} 44. Kc5 {[%clk 0:00:13]}  exf4 {[%clk 0:00:02]} 45. Bxf4 {[%clk 0:00:13]}  Na4+ {[%clk 0:00:03]} 46. Kb4 {[%clk 0:00:11]}  Nb6 {[%clk 0:00:04]} 47. c4 {[%clk 0:00:12]}  Nc8 {[%clk 0:00:02]} 48. Kc5 {[%clk 0:00:10]}  a5 {[%clk 0:00:02]} 49. Kd5 {[%clk 0:00:09]}  Nb6+ {[%clk 0:00:02]} 50. Kc5 {[%clk 0:00:08]}  Nc8 {[%clk 0:00:03]} 51. Kb5 {[%clk 0:00:07]}  Nxd6+ {[%clk 0:00:02]} 52. Bxd6 {[%clk 0:00:07]}  Kxd6 {[%clk 0:00:03]} 53. Kb6 {[%clk 0:00:08]}  a4 {[%clk 0:00:03]} 54. c5+ {[%clk 0:00:09]}  Ke5 {[%clk 0:00:02]} 55. c6 {[%clk 0:00:09]}  a3 {[%clk 0:00:03]} 56. c7 {[%clk 0:00:10]}  a2 {[%clk 0:00:04]} 57. c8=Q {[%clk 0:00:11]}  a1=Q {[%clk 0:00:04]} 58. Qf5+ {[%clk 0:00:06]}  Kd6 {[%clk 0:00:05]} 59. Qc5+ {[%clk 0:00:03]}  Ke6 {[%clk 0:00:04]} 60. Qf5+ {[%clk 0:00:02]}  Ke7 {[%clk 0:00:03]} 61. Qc5+ {[%clk 0:00:02]}  Ke6 {[%clk 0:00:03]} 62. Qc6+ {[%clk 0:00:02]}  Ke5 {[%clk 0:00:03]} 63. Qc7+ {[%clk 0:00:03]}  Ke4 {[%clk 0:00:03]} 64. Qxg7 {[%clk 0:00:03]}  Qd4+ {[%clk 0:00:02]} 65. Kc6 {[%clk 0:00:03]}  Qd5+ {[%clk 0:00:03]} 66. Kc7 {[%clk 0:00:03]}  Qg5 {[%clk 0:00:03]} 67. Qh7+ {[%clk 0:00:03]}  Kf4 {[%clk 0:00:04]} 68. Qg6 {[%clk 0:00:03]}  Kxg4 {[%clk 0:00:05]} 69. Qe4+ {[%clk 0:00:03]}  Qf4+ {[%clk 0:00:04]} 70. Qxf4+ {[%clk 0:00:01]}  Kxf4 {[%clk 0:00:05]} 71. Kd6 {[%clk 0:00:02]}  Kg5 {[%clk 0:00:04]} 72. Ke6 {[%clk 0:00:02]}  f5 {[%clk 0:00:05]} 73. Ke5 {[%clk 0:00:03]}  f4 {[%clk 0:00:05]} 74. Ke4 {[%clk 0:00:03]}  Kg4 {[%clk 0:00:06]} 75. Kd3 {[%clk 0:00:04]}  f3 {[%clk 0:00:06]} 76. Ke3 {[%clk 0:00:04]}  Kg3 {[%clk 0:00:06]} 77. Ke4 {[%clk 0:00:04]}  f2 {[%clk 0:00:07]} 78. Kf5 {[%clk 0:00:05]}  f1=Q+ {[%clk 0:00:06]} 79. Kg6 {[%clk 0:00:06]}  Qf4 {[%clk 0:00:07]} 80. Kh7 {[%clk 0:00:02]}  Qg5 {[%clk 0:00:06]} 81. Kh8 {[%clk 0:00:03]}  Kf4 {[%clk 0:00:07]} 82. Kh7 {[%clk 0:00:03]}  Kf5 {[%clk 0:00:08]} 83. Kh8 {[%clk 0:00:00]}  Kf6 {[%clk 0:00:08]} 0-1


[Site "https://www.chess.com"]

[Event "Titled Tuesday Blitz June 20 Early 2023"]
[White "Goldin, Roman"]
[Black "Druska, Juraj"]
[WhiteFideId "2803860"]
[BlackFideId "14915650"]
[WhiteElo "2312"]
[BlackElo "2415"]
[Result "0-1"]
[Round "4"]
[TimeControl "180+2"]
[Date "2023.06.20"]
[WhiteClock "0:00:00"]
[BlackClock "0:00:17"]
[Board "94"]

1. e4 {[%clk 0:02:59]}  d6 {[%clk 0:02:58]} 2. d4 {[%clk 0:02:58]}  Nf6 {[%clk 0:02:58]} 3. Nc3 {[%clk 0:02:58]}  Nbd7 {[%clk 0:02:58]} 4. Nf3 {[%clk 0:02:57]}  e5 {[%clk 0:02:58]} 5. g3 {[%clk 0:02:57]}  g6 {[%clk 0:02:56]} 6. Bg2 {[%clk 0:02:57]}  Bg7 {[%clk 0:02:57]} 7. O-O {[%clk 0:02:57]}  O-O {[%clk 0:02:58]} 8. h3 {[%clk 0:02:57]}  Re8 {[%clk 0:02:58]} 9. Re1 {[%clk 0:02:57]}  b6 {[%clk 0:02:55]} 10. a4 {[%clk 0:02:52]}  a5 {[%clk 0:02:54]} 11. d5 {[%clk 0:02:35]}  h6 {[%clk 0:02:51]} 12. Nd2 {[%clk 0:02:33]}  Nc5 {[%clk 0:02:42]} 13. Kh2 {[%clk 0:02:31]}  Nh7 {[%clk 0:02:38]} 14. Nc4 {[%clk 0:02:25]}  f5 {[%clk 0:02:37]} 15. exf5 {[%clk 0:02:18]}  gxf5 {[%clk 0:02:36]} 16. Be3 {[%clk 0:02:06]}  Qf6 {[%clk 0:02:31]} 17. Qh5 {[%clk 0:01:48]}  Rf8 {[%clk 0:02:26]} 18. Rad1 {[%clk 0:01:40]}  Bd7 {[%clk 0:02:10]} 19. f4 {[%clk 0:01:34]}  exf4 {[%clk 0:01:54]} 20. gxf4 {[%clk 0:01:28]}  Nxa4 {[%clk 0:01:54]} 21. Nxa4 {[%clk 0:01:14]}  Bxa4 {[%clk 0:01:54]} 22. Bd4 {[%clk 0:01:04]}  Qf7 {[%clk 0:01:53]} 23. Qxf7+ {[%clk 0:00:47]}  Rxf7 {[%clk 0:01:54]} 24. b3 {[%clk 0:00:37]}  Bb5 {[%clk 0:01:52]} 25. Bf1 {[%clk 0:00:34]}  Nf6 {[%clk 0:01:39]} 26. Nxd6 {[%clk 0:00:32]}  cxd6 {[%clk 0:01:18]} 27. Bxb5 {[%clk 0:00:32]}  Ne4 {[%clk 0:01:16]} 28. Bc6 {[%clk 0:00:26]}  Raf8 {[%clk 0:01:06]} 29. Bxb6 {[%clk 0:00:23]}  Bc3 {[%clk 0:00:59]} 30. Rg1+ {[%clk 0:00:23]}  Kh7 {[%clk 0:00:59]} 31. Bd4 {[%clk 0:00:18]}  Rb8 {[%clk 0:00:47]} 32. Bxc3 {[%clk 0:00:16]}  Nxc3 {[%clk 0:00:48]} 33. Rde1 {[%clk 0:00:16]}  Rb4 {[%clk 0:00:38]} 34. Re6 {[%clk 0:00:13]}  Rxf4 {[%clk 0:00:34]} 35. Rgg6 {[%clk 0:00:11]}  Rh4 {[%clk 0:00:27]} 36. Rxd6 {[%clk 0:00:08]}  Ne4 {[%clk 0:00:23]} 37. Rde6 {[%clk 0:00:08]}  Ng5 {[%clk 0:00:23]} 38. Ref6 {[%clk 0:00:06]}  Re7 {[%clk 0:00:17]} 39. d6 {[%clk 0:00:04]}  Rxh3+ {[%clk 0:00:17]} 40. Kg2 {[%clk 0:00:04]}  Re2+ {[%clk 0:00:16]} 41. Kf1 {[%clk 0:00:00]}  Rxc2 {[%clk 0:00:17]} 0-1


[Site "https://www.chess.com"]

[Event "Titled Tuesday Blitz June 20 Early 2023"]
[White "Bauman_Guy"]
[Black "Fernandez Siles, Luis"]
[BlackFideId "2209420"]
[WhiteElo "2636"]
[BlackElo "2195"]
[Result "1-0"]
[Round "4"]
[TimeControl "180+2"]
[Date "2023.06.20"]
[WhiteClock "0:01:24"]
[BlackClock "0:00:32"]
[Board "96"]

1. e4 {[%clk 0:03:00]}  c5 {[%clk 0:02:59]} 2. Nf3 {[%clk 0:03:00]}  Nc6 {[%clk 0:02:59]} 3. d4 {[%clk 0:02:59]}  cxd4 {[%clk 0:03:00]} 4. Nxd4 {[%clk 0:02:59]}  Nf6 {[%clk 0:03:01]} 5. Nc3 {[%clk 0:02:59]}  e5 {[%clk 0:03:01]} 6. Ndb5 {[%clk 0:02:59]}  d6 {[%clk 0:03:02]} 7. Bg5 {[%clk 0:02:58]}  a6 {[%clk 0:03:02]} 8. Na3 {[%clk 0:02:59]}  b5 {[%clk 0:03:03]} 9. Bxf6 {[%clk 0:02:59]}  gxf6 {[%clk 0:03:04]} 10. Nd5 {[%clk 0:02:59]}  f5 {[%clk 0:03:04]} 11. g3 {[%clk 0:02:59]}  h5 {[%clk 0:02:59]} 12. Bg2 {[%clk 0:02:56]}  f4 {[%clk 0:02:46]} 13. c3 {[%clk 0:02:37]}  Bg4 {[%clk 0:02:40]} 14. Bf3 {[%clk 0:02:36]}  Rg8 {[%clk 0:02:21]} 15. h3 {[%clk 0:02:33]}  fxg3 {[%clk 0:02:14]} 16. hxg4 {[%clk 0:02:30]}  gxf2+ {[%clk 0:02:13]} 17. Kxf2 {[%clk 0:02:28]}  hxg4 {[%clk 0:02:03]} 18. Bxg4 {[%clk 0:02:27]}  Ra7 {[%clk 0:01:47]} 19. Qf3 {[%clk 0:02:18]}  Be7 {[%clk 0:01:31]} 20. Rh7 {[%clk 0:02:13]}  Bg5 {[%clk 0:01:20]} 21. Bh5 {[%clk 0:02:07]}  Bf4 {[%clk 0:01:14]} 22. Rh1 {[%clk 0:01:46]}  Qg5 {[%clk 0:01:06]} 23. Ke2 {[%clk 0:01:30]}  Qg2+ {[%clk 0:00:38]} 24. Qxg2 {[%clk 0:01:26]}  Rxg2+ {[%clk 0:00:39]} 25. Kf3 {[%clk 0:01:26]}  Rxb2 {[%clk 0:00:39]} 26. Rh8+ {[%clk 0:01:25]}  Kd7 {[%clk 0:00:36]} 27. Bg4+ {[%clk 0:01:25]}  f5 {[%clk 0:00:32]} 28. Bxf5# {[%clk 0:01:24]} 1-0


[Site "https://www.chess.com"]

[Event "Titled Tuesday Blitz June 20 Early 2023"]
[White "Alahakoon, Isuru"]
[Black "Fiorito, Joaquin"]
[WhiteFideId "9900993"]
[BlackFideId "180173"]
[WhiteElo "1819"]
[BlackElo "2199"]
[Result "0-1"]
[Round "4"]
[TimeControl "180+2"]
[Date "2023.06.20"]
[WhiteClock "0:00:00"]
[BlackClock "0:01:51"]
[Board "98"]

1. Nf3 {[%clk 0:03:00]}  Nf6 {[%clk 0:02:59]} 2. d4 {[%clk 0:02:55]}  d5 {[%clk 0:02:59]} 3. e3 {[%clk 0:02:50]}  c5 {[%clk 0:02:59]} 4. b3 {[%clk 0:02:47]}  Nc6 {[%clk 0:02:58]} 5. Bb2 {[%clk 0:02:47]}  cxd4 {[%clk 0:02:59]} 6. exd4 {[%clk 0:02:45]}  Bg4 {[%clk 0:02:59]} 7. Nbd2 {[%clk 0:02:44]}  e6 {[%clk 0:02:59]} 8. Bd3 {[%clk 0:02:43]}  Bd6 {[%clk 0:03:00]} 9. O-O {[%clk 0:02:43]}  O-O {[%clk 0:03:00]} 10. a3 {[%clk 0:02:40]}  Rc8 {[%clk 0:03:00]} 11. Qe1 {[%clk 0:02:39]}  Re8 {[%clk 0:03:00]} 12. Ne5 {[%clk 0:02:38]}  Bf5 {[%clk 0:02:52]} 13. Qe2 {[%clk 0:02:08]}  Bxd3 {[%clk 0:02:51]} 14. Qxd3 {[%clk 0:02:09]}  Qc7 {[%clk 0:02:47]} 15. Rae1 {[%clk 0:02:01]}  Ne7 {[%clk 0:02:32]} 16. c4 {[%clk 0:01:54]}  dxc4 {[%clk 0:02:32]} 17. bxc4 {[%clk 0:01:55]}  b6 {[%clk 0:02:32]} 18. Ndf3 {[%clk 0:01:45]}  Red8 {[%clk 0:02:30]} 19. Qe2 {[%clk 0:01:31]}  Ng6 {[%clk 0:02:30]} 20. Rc1 {[%clk 0:01:14]}  Bxe5 {[%clk 0:02:29]} 21. dxe5 {[%clk 0:01:13]}  Nd7 {[%clk 0:02:29]} 22. h4 {[%clk 0:01:00]}  h6 {[%clk 0:02:26]} 23. Qe3 {[%clk 0:00:47]}  Nc5 {[%clk 0:02:25]} 24. h5 {[%clk 0:00:45]}  Ne7 {[%clk 0:02:20]} 25. Rfd1 {[%clk 0:00:41]}  Nf5 {[%clk 0:02:20]} 26. Qe2 {[%clk 0:00:30]}  Qc6 {[%clk 0:02:19]} 27. Rxd8+ {[%clk 0:00:27]}  Rxd8 {[%clk 0:02:19]} 28. Rd1 {[%clk 0:00:27]}  Rc8 {[%clk 0:02:18]} 29. Nd4 {[%clk 0:00:24]}  Nxd4 {[%clk 0:02:18]} 30. Rxd4 {[%clk 0:00:25]}  Na4 {[%clk 0:02:17]} 31. g3 {[%clk 0:00:18]}  Qc7 {[%clk 0:02:06]} 32. Bc1 {[%clk 0:00:16]}  Rd8 {[%clk 0:01:58]} 33. Rg4 {[%clk 0:00:13]}  Kf8 {[%clk 0:01:58]} 34. Be3 {[%clk 0:00:11]}  Qc6 {[%clk 0:01:55]} 35. Qc2 {[%clk 0:00:09]}  Nc3 {[%clk 0:01:51]} 36. Qh7 {[%clk 0:00:00]}  Rd1+ {[%clk 0:01:51]} 0-1


[Site "https://www.chess.com"]

[Event "Titled Tuesday Blitz June 20 Early 2023"]
[White "Kjartansson, David"]
[Black "Pavlidou, Ekaterini"]
[WhiteFideId "2301130"]
[BlackFideId "4213262"]
[WhiteElo "2333"]
[BlackElo "2126"]
[Result "0-1"]
[Round "4"]
[TimeControl "180+2"]
[Date "2023.06.20"]
[WhiteClock "0:00:02"]
[BlackClock "0:00:11"]
[Board "100"]

1. d4 {[%clk 0:02:54]}  Nf6 {[%clk 0:02:58]} 2. Bg5 {[%clk 0:02:53]}  Ne4 {[%clk 0:02:55]} 3. h4 {[%clk 0:02:53]}  h6 {[%clk 0:02:54]} 4. Bf4 {[%clk 0:02:47]}  c5 {[%clk 0:02:48]} 5. d5 {[%clk 0:02:45]}  d6 {[%clk 0:02:48]} 6. f3 {[%clk 0:02:42]}  Nf6 {[%clk 0:02:45]} 7. e4 {[%clk 0:02:42]}  g6 {[%clk 0:02:44]} 8. Nc3 {[%clk 0:02:41]}  Bg7 {[%clk 0:02:44]} 9. Qd2 {[%clk 0:02:41]}  Nh5 {[%clk 0:02:37]} 10. Be3 {[%clk 0:02:39]}  Ng3 {[%clk 0:02:36]} 11. Rh2 {[%clk 0:02:38]}  Nxf1 {[%clk 0:02:36]} 12. Kxf1 {[%clk 0:02:39]}  b5 {[%clk 0:02:36]} 13. Re1 {[%clk 0:02:34]}  b4 {[%clk 0:02:33]} 14. Nd1 {[%clk 0:02:34]}  Ba6+ {[%clk 0:02:30]} 15. Ne2 {[%clk 0:02:28]}  Nd7 {[%clk 0:02:30]} 16. Kg1 {[%clk 0:02:27]}  Ne5 {[%clk 0:02:28]} 17. b3 {[%clk 0:02:25]}  Rc8 {[%clk 0:02:19]} 18. Nf4 {[%clk 0:01:55]}  Qa5 {[%clk 0:02:07]} 19. a4 {[%clk 0:01:47]}  c4 {[%clk 0:02:02]} 20. Bxa7 {[%clk 0:01:35]}  cxb3 {[%clk 0:01:48]} 21. cxb3 {[%clk 0:01:36]}  g5 {[%clk 0:01:47]} 22. hxg5 {[%clk 0:01:34]}  hxg5 {[%clk 0:01:47]} 23. Nh5 {[%clk 0:01:28]}  Bh6 {[%clk 0:01:40]} 24. Be3 {[%clk 0:01:25]}  f6 {[%clk 0:01:17]} 25. Ng3 {[%clk 0:01:19]}  Kf7 {[%clk 0:01:15]} 26. Nf5 {[%clk 0:01:19]}  Bg7 {[%clk 0:01:14]} 27. Rxh8 {[%clk 0:01:18]}  Rxh8 {[%clk 0:01:13]} 28. Nf2 {[%clk 0:01:16]}  Bc8 {[%clk 0:01:05]} 29. Rc1 {[%clk 0:00:55]}  Bxf5 {[%clk 0:01:03]} 30. exf5 {[%clk 0:00:53]}  Qa8 {[%clk 0:00:56]} 31. Ne4 {[%clk 0:00:47]}  Rc8 {[%clk 0:00:44]} 32. Rxc8 {[%clk 0:00:37]}  Qxc8 {[%clk 0:00:44]} 33. Qxb4 {[%clk 0:00:38]}  Qxf5 {[%clk 0:00:44]} 34. Qd2 {[%clk 0:00:29]}  g4 {[%clk 0:00:42]} 35. Ng3 {[%clk 0:00:29]}  Qb1+ {[%clk 0:00:40]} 36. Qc1 {[%clk 0:00:20]}  Qxb3 {[%clk 0:00:40]} 37. a5 {[%clk 0:00:19]}  gxf3 {[%clk 0:00:29]} 38. gxf3 {[%clk 0:00:19]}  Nc4 {[%clk 0:00:23]} 39. Bf2 {[%clk 0:00:15]}  Nxa5 {[%clk 0:00:18]} 40. Qe1 {[%clk 0:00:15]}  Qxd5 {[%clk 0:00:17]} 41. Ne4 {[%clk 0:00:15]}  Nc4 {[%clk 0:00:16]} 42. Qe2 {[%clk 0:00:14]}  Bh6 {[%clk 0:00:15]} 43. Qa2 {[%clk 0:00:11]}  Ne3 {[%clk 0:00:13]} 44. Qa7 {[%clk 0:00:08]}  Qd1+ {[%clk 0:00:12]} 45. Kh2 {[%clk 0:00:07]}  Qxf3 {[%clk 0:00:11]} 46. Nxd6+ {[%clk 0:00:08]}  Kg6 {[%clk 0:00:09]} 47. Bxe3 {[%clk 0:00:06]}  Bxe3 {[%clk 0:00:10]} 48. Qa8 {[%clk 0:00:05]}  Bf4+ {[%clk 0:00:10]} 49. Kg1 {[%clk 0:00:02]}  Qxa8 {[%clk 0:00:11]} 0-1


[Site "https://www.chess.com"]

[Event "Titled Tuesday Blitz June 20 Early 2023"]
[White "djokovic74"]
[Black "Rodriguez Polo, Mateo"]
[BlackFideId "24509396"]
[WhiteElo "2627"]
[BlackElo "2117"]
[Result "1-0"]
[Round "4"]
[TimeControl "180+2"]
[Date "2023.06.20"]
[WhiteClock "0:00:16"]
[BlackClock "0:00:00"]
[Board "101"]

1. e4 {[%clk 0:03:00]}  e5 {[%clk 0:02:59]} 2. Nf3 {[%clk 0:03:01]}  Nc6 {[%clk 0:02:59]} 3. Bb5 {[%clk 0:03:01]}  a6 {[%clk 0:02:59]} 4. Ba4 {[%clk 0:03:01]}  Nf6 {[%clk 0:02:59]} 5. O-O {[%clk 0:03:01]}  Be7 {[%clk 0:02:59]} 6. d3 {[%clk 0:03:00]}  b5 {[%clk 0:02:58]} 7. Bb3 {[%clk 0:03:00]}  d6 {[%clk 0:02:59]} 8. a3 {[%clk 0:03:00]}  O-O {[%clk 0:02:58]} 9. Nc3 {[%clk 0:03:01]}  Na5 {[%clk 0:02:54]} 10. Ba2 {[%clk 0:03:01]}  c5 {[%clk 0:02:54]} 11. b4 {[%clk 0:03:00]}  Nb7 {[%clk 0:02:49]} 12. Nd5 {[%clk 0:02:59]}  Be6 {[%clk 0:02:47]} 13. Nxf6+ {[%clk 0:02:54]}  Bxf6 {[%clk 0:02:47]} 14. Bxe6 {[%clk 0:02:55]}  fxe6 {[%clk 0:02:48]} 15. Be3 {[%clk 0:02:53]}  Rc8 {[%clk 0:02:46]} 16. a4 {[%clk 0:02:52]}  cxb4 {[%clk 0:02:39]} 17. axb5 {[%clk 0:02:52]}  axb5 {[%clk 0:02:40]} 18. Ra7 {[%clk 0:02:51]}  Nc5 {[%clk 0:02:38]} 19. Qb1 {[%clk 0:02:46]}  Qb6 {[%clk 0:02:30]} 20. Qa2 {[%clk 0:02:32]}  b3 {[%clk 0:02:06]} 21. cxb3 {[%clk 0:02:27]}  Qb8 {[%clk 0:01:56]} 22. b4 {[%clk 0:02:15]}  Nxd3 {[%clk 0:01:47]} 23. Qxe6+ {[%clk 0:02:15]}  Kh8 {[%clk 0:01:46]} 24. g4 {[%clk 0:01:32]}  Nf4 {[%clk 0:01:24]} 25. Qd7 {[%clk 0:01:20]}  Rcd8 {[%clk 0:01:06]} 26. Qb7 {[%clk 0:01:00]}  Qc8 {[%clk 0:00:27]} 27. Qxc8 {[%clk 0:00:58]}  Rxc8 {[%clk 0:00:28]} 28. Bxf4 {[%clk 0:00:36]}  exf4 {[%clk 0:00:29]} 29. g5 {[%clk 0:00:37]}  Bc3 {[%clk 0:00:27]} 30. Rb1 {[%clk 0:00:23]}  Rc4 {[%clk 0:00:25]} 31. Rb7 {[%clk 0:00:23]}  Bxb4 {[%clk 0:00:21]} 32. Rxb5 {[%clk 0:00:23]}  Bc5 {[%clk 0:00:21]} 33. Rb8 {[%clk 0:00:23]}  Kg8 {[%clk 0:00:19]} 34. R8b7 {[%clk 0:00:16]}  Rxe4 {[%clk 0:00:19]} 35. Rd7 {[%clk 0:00:16]}  Re2 {[%clk 0:00:18]} 36. Rbb7 {[%clk 0:00:16]}  Bxf2+ {[%clk 0:00:00]} 37. Kf1 {[%clk 0:00:16]} 1-0


[Site "https://www.chess.com"]